{"text_format":"1","workbook":"xlsx","n_sheets":5,"sheets":["PLANTILLA","IMPORTANTE","Tipo y subtipo cotizantes","Subsistemas x Tipo de Pago","TABLAS"],"not_rendered":{"charts":0,"images":8,"macros":1,"external_links":0,"defined_names":48,"comments":0,"pivot_tables":0},"unopened":[],"bounds":{"document_bytes":16777216,"sheet_cells":100000,"rows_first":2000,"rows_last":500,"rows_between":2000,"halvings":0,"cell_chars":16384,"cell_head_chars":4096},"cells_cut":0,"cells_raw":0,"read":"whole","date_system":"1900"}

{"sheet":"PLANTILLA","index":0,"n_rows":8,"n_cols":70,"rows_kept":8,"cut":false,"hidden":false,"merged":[[5,1,5,13],[5,14,5,15],[5,17,5,21],[5,22,5,29],[1,23,3,23],[1,24,3,24],[1,25,3,25],[1,27,3,27]]}
[null,"Version 23.0",null,null,{"$f":"IF(E5=1,\"PUBLICA\",\"\")","v":""},null,null,null,null,null,null,null,null,null,null,null,null,null,null,null,null,null,null,null,null,null,null,null,null,null,null,null,null,null,null,null,null,null,null,null,null,null,null,null,null,null,null,null,null,null,null,null,null,null,null,null,null,null,null,null,null,null,null,null,null,null,null,null,".",{"$f":"IFERROR(VLOOKUP(BR3,TABLAS!$AA$4:$AB$110,2,0),IF($A$1=\"UGPP\",\"¿NATURALEZA JURIDICA Y TIPO DE APORTANTE?\",\".\"))","v":"."}]
[null,null,null,null,null,null,null,null,null,null,null,null,null,null,null,null,null,null,null,null,null,null,null,{"$f":"IF(F5=2,\"\", IF(AND(SUM(X8:X970024)>0,IFERROR(HLOOKUP(\"TP INCAPACIDAD\",$BR$3:$XFD$3,1,0),1)=1),\"Recuerde ingresar la columna con  TIPO DE PAGO Incapacidades y registrar los valores por este concepto\",\"\"))","v":""},{"$f":"IF(F5=2,\"\", IF(AND(SUM(Y8:Y970024)>0,IFERROR(HLOOKUP(\"TP INCAPACIDAD\",$BR$3:$XFD$3,1,0),1)=1),\"Recuerde ingresar la columna con  TIPO DE PAGO Incapacidades y registrar los valores por este concepto\",\"\"))","v":""},{"$f":"IF(AND(SUM(Z8:Z970024)>0,IFERROR(HLOOKUP(\"TP LICENCIA REMUNERADA\",$BR$3:$XFD$3,1,0),1)=1),\"Recuerde ingresar la columna con  TIPO DE PAGO Permiso o licencia remunerada y registrar los valores por este concepto\",\"\")","v":""},null,{"$f":"IF(AND(SUM(AB8:AB970024)>0,IFERROR(HLOOKUP(\"TP VACACIONES\",$BR$3:$XFD$3,1,0),1)=1),\"Recuerde ingresar la columna con  TIPO DE PAGO Vacaciones y registrar los valores por este concepto\",\"\")","v":""},null,null,null,null,null,null,null,null,null,null,null,null,null,null,null,null,null,null,null,null,null,null,null,null,null,null,null,null,null,null,null,null,null,null,null,null,null,null,null,null,"CAMPO RESERVADO PARA LA UGPP"]
[null,null,null,null,{"$f":"IF(E5=1,\"Publica\",\"No Publica\")","v":"No Publica"},{"$f":"IFERROR(VLOOKUP(E5&F5,TABLAS!R4:S42,2,0),\"\")","v":""},null,null,null,null,null,null,null,null,null,null,null,null,null,null,null,null,null,null,null,null,null,null,null,null,null,null,null,null,null,null,null,null,null,null,null,null,null,null,null,null,null,null,null,null,null,null,null,null,null,null,null,null,null,null,null,null,null,null,null,null,null,null,"TIPO DE PAGO"]
[null,"TIPO DOCUMENTO APORTANTE","NUMERO DOCUMENTO APORTANTE","RAZON SOCIAL","NATURALEZA JURIDICA","TIPO DE APORTANTE","CAMPO RESERVADO PARA LA UGPP","SUJETO PASIVO DEL IMPUESTO SOBRE LA RENTA PARA LA EQUIDAD CREE","CAMPO RESERVADO PARA LA UGPP","CAMPO RESERVADO PARA LA UGPP","CAMPO RESERVADO PARA LA UGPP","CAMPO RESERVADO PARA LA UGPP","CAMPO RESERVADO PARA LA UGPP","CAMPO RESERVADO PARA LA UGPP","CAMPO RESERVADO PARA LA UGPP","CAMPO RESERVADO PARA LA UGPP",null,null,null,null,null,null,null,null,null,null,null,null,null,null,null,null,null,null,null,null,null,null,null,null,null,null,null,null,null,null,null,null,null,null,null,null,null,null,null,null,null,null,null,null,null,null,null,null,null,null,null,null,"CAMPO RESERVADO PARA LA UGPP"]
[null,null,null,null,null,null,null,null,null,null,null,null,null,null,null,null,null,null,null,null,null,null,null,null,null,null,null,null,null,null,null,null,null,null,null,null,null,null,null,null,null,null,null,null,null,null,null,null,null,null,null,null,null,null,null,null,null,null,null,null,null,null,null,null,null,null,null,null,"CAMPO RESERVADO PARA LA UGPP",{"$f":"IF($A$1=\"UGPP\",IFERROR(VLOOKUP(BR3,TABLAS!$AA$4:$AC$110,3,0),IF($A$1=\"UGPP\",\"¿TIPO DE PAGO?\",\"\")), \"\")","v":""}]
[null,"Datos básicos del trabajador o asociado",null,null,null,null,null,null,null,null,null,null,null,null,"Periodo nómina",null,null,"Novedades",null,null,null,null,"Reporte de días",null,null,null,null,null,null,null,null,null,null,null,null,null,null,null,null,null,null,null,null,null,null,null,null,null,null,null,null,null,null,null,null,null,null,null,null,null,null,null,null,null,null,null,null,null,"cuenta contable"]
["ORDEN","TIPO COTIZANTE","SUBTIPO COTIZANTE","CONDICION ESPECIAL EMPRESA","CAMPO RESERVADO PARA LA UGPP","EXTRANJERO NO OBLIGADO A COTIZAR PENSION","COLOMBIANO EN EL EXTERIOR","ACTIVIDAD ALTO RIESGO PENSION","TIPO DOCUMENTO ACTUAL DEL COTIZANTE","NUMERO DOCUMENTO ACTUAL DEL COTIZANTE","TIPO DOCUMENTO CON EL QUE REALIZO APORTES DEL COTIZANTE","NUMERO DOCUMENTO CON EL QUE REALIZO APORTES DEL COTIZANTE","NOMBRE COTIZANTE","CARGO DEL TRABAJADOR O ASOCIADO","ANIO","MES","SALARIO INTEGRAL","NOVEDAD INCAPACIDAD","NOVEDAD LIC.MATERNIDAD O PATERNIDAD","NOVEDAD DE PERMISO O LICENCIA REMUNERADA","NOVEDAD DE SUSPENSION","NOVEDAD VACACIONES","NUMERO DIAS TRABAJADOS EN EL MES","NUMERO DIAS INCAPACIDADES EN EL MES","NUMERO DIAS LICENCIA DE MATERNIDAD O PATERNIDAD","NUMERO DIAS DE PERMISO O LICENCIA  REMUNERADAS EN EL MES","NUMERO DIAS DE SUSPENSION, PERMISO O LICENCIA  NO REMUNERADAS EN EL MES","NUMERO DE DIAS VACACIONES DISFRUTADAS EN EL MES O DESCANSO ANUAL REMUNERADO","NUMERO DIAS DE HUELGA LEGALMENTE DECLARADA","TOTAL DIAS REPORTADOS EN EL MES","INGRESO","FECHA ING","RETIRO","FECHA RET","FECHA DE INICIO DE VACACIONES","FECHA TERMINACION DE VACACIONES","FECHA INICIO PERMISO O LICENCIA REMUNERADA","FECHA INICIO SUSPENSION, PERMISO O LICENCIA NO REMUNERADA","FECHA INICIO HUELGA LEGALMENTE DECLARADA","CAMPO RESERVADO PARA LA UGPP","CAMPO RESERVADO PARA LA UGPP","CAMPO RESERVADO PARA LA UGPP","CAMPO RESERVADO PARA LA UGPP","CAMPO RESERVADO PARA LA UGPP","CAMPO RESERVADO PARA LA UGPP","OBSERVACIONES APORTANTE","CAMPO RESERVADO PARA LA UGPP","CAMPO RESERVADO PARA LA UGPP","CAMPO RESERVADO PARA LA UGPP","CAMPO RESERVADO PARA LA UGPP","CAMPO RESERVADO PARA LA UGPP","CAMPO RESERVADO PARA LA UGPP","CAMPO RESERVADO PARA LA UGPP","CAMPO RESERVADO PARA LA UGPP","CAMPO RESERVADO PARA LA UGPP","CAMPO RESERVADO PARA LA UGPP","CAMPO RESERVADO PARA LA UGPP","CAMPO RESERVADO PARA LA UGPP","CAMPO RESERVADO PARA LA UGPP","CAMPO RESERVADO PARA LA UGPP","CAMPO RESERVADO PARA LA UGPP","CAMPO RESERVADO PARA LA UGPP","CAMPO RESERVADO PARA LA UGPP","CAMPO RESERVADO PARA LA UGPP","CAMPO RESERVADO PARA LA UGPP","CAMPO RESERVADO PARA LA UGPP","CAMPO RESERVADO PARA LA UGPP","CAMPO RESERVADO PARA LA UGPP","NOMBRE CONCEPTO DE PAGO APORTANTE"]
[1,null,0,null,null,null,null,null,null,null,null,null,null,null,null,null,null,{"$f":"IF(X8>0,\"X\",\"\")","v":""},{"$f":"IF(Y8>0,\"X\",\"\")","v":""},{"$f":"IF(Z8>0,\"X\",\"\")","v":""},{"$f":"IF((AA8+AC8)>0,\"X\",\"\")","v":""},{"$f":"IF(AB8>0,\"X\",\"\")","v":""},0,0,0,0,0,0,0,{"$f":"IF(SUM(W8:AC8)=0,0,IF(AND(SUM(W8:AC8)<30,AE8=\"\",AG8=\"\"),\"Ingreso o Retiro\",IF(SUM(W8:AC8)>30,\"Días mayores a 30\",IF(AND(AE8=\"X\",OR(YEAR(AF8)<>O8,MONTH(AF8)<>P8)),\"Fecha ing.incorrecta\",IF(AND(AG8=\"X\",OR(YEAR(AH8)<>O8,MONTH(AH8)<>P8)),\"Fecha Ret.incorrecta\",SUM(W8:AC8))))))","v":0},{"$f":"IF(AF8=\"\",\"\",\"X\")","v":""},null,{"$f":"IF(AH8=\"\",\"\",\"X\")","v":""}]

{"sheet":"IMPORTANTE","index":1,"n_rows":0,"n_cols":0,"rows_kept":0,"cut":false,"hidden":true,"merged":[]}

{"sheet":"Tipo y subtipo cotizantes","index":2,"n_rows":192,"n_cols":13,"rows_kept":192,"cut":false,"hidden":true,"merged":[[38,0,39,0],[38,1,39,1],[38,2,38,11],[2,0,2,9],[3,0,4,0],[3,1,4,1],[3,2,3,9],[37,0,37,11],[130,0,130,1],[162,0,162,1],[175,0,175,1],[184,0,184,1],[72,0,72,12],[73,0,74,0],[73,1,74,1],[73,2,73,12],[107,0,107,2],[121,0,121,1]]}
[]
[]
["Tabla 17. R10- Regla de validación – Tipo de Cotizante  Vs Subsistema al que aporta"]
["TIPO COTIZANTE","CODIGO","SUBSISTEMA"]
[null,null,"SALUD","PENSION","ALTO RIESGO","FSP","ARP","CCF","ICBF","SENA"]
["DEPENDIENTE",1,"X","X","X","X","X","X","X","X",null,null,{"$f":"B6&\". \"&A6","v":"1. DEPENDIENTE"}]
["SERVICIO DOMESTICO",2,"X","X","X","X","X","X",null,null,null,null,{"$f":"B7&\". \"&A7","v":"2. SERVICIO DOMESTICO"}]
["INDEPENDIENTE",3,"X","X","X","X",null,null,null,null,null,null,"3. INDEPENDIENTE"]
["MADRE COMUNITARIA",4,"X",null,null,null,null,null,null,null,null,null,"4. MADRE COMUNITARIA"]
["APRENDICES DEL SENA EN ETAPA LECTIVA",12,"X",null,null,null,null,null,null,null,null,null,"12. APRENDICES DEL SENA EN ETAPA LECTIVA"]
["DESEMPLEADO CON SUBSIDIO DE CAJA DE COMPENSACION FAMILIAR",15,"X",null,null,null,null,null,null,null,null,null,"15. DESEMPLEADO CON SUBSIDIO DE CAJA DE COMPENSACION FAMILIAR"]
["INDEPENDIENTE AGREMIADO O ASOCIADO",16,"X","X","X","X",null,null,null,null,null,null,"16. INDEPENDIENTE AGREMIADO O ASOCIADO"]
["FUNCIONARIOS PUBLICOS SIN TOPE MAXIMO DE IBC",18,"X","X","X","X","X","X","X","X",null,null,"18. FUNCIONARIOS PUBLICOS SIN TOPE MAXIMO DE IBC"]
["APRENDICES DEL SENA EN ETAPA PRODUCTIVA",19,"X",null,null,null,"X",null,null,null,null,null,"19. APRENDICES DEL SENA EN ETAPA PRODUCTIVA"]
["ESTUDIANTES (REGIMEN ESPECIAL LEY 789 DE 2002)",20,"X","X","X","X","X",null,null,null,null,null,"20. ESTUDIANTES (REGIMEN ESPECIAL LEY 789 DE 2002)"]
["ESTUDIANTES DE POSTGRADO EN SALUD",21,"X",null,null,null,"X",null,null,null,null,null,"21. ESTUDIANTES DE POSTGRADO EN SALUD"]
["PROFESOR DE ESTABLECIMIENTO PARTICULAR",22,"X","X","X","X","X","X","X","X",null,null,"22. PROFESOR DE ESTABLECIMIENTO PARTICULAR"]
["DEPENDIENTE ENTIDADES O UNIVERSIDADES PUBLICAS CON REGIMEN ESPECIAL EN SALUD",30,"X","X","X","X","X","X","X","X",null,null,"30. DEPENDIENTE ENTIDADES O UNIVERSIDADES PUBLICAS CON REGIMEN ESPECIAL EN SALUD"]
["COOPERADOS O PRECOOPERATIVAS DE TRABAJO ASOCIADO",31,"X","X","X","X","X","X","X","X",null,null,"31. COOPERADOS O PRECOOPERATIVAS DE TRABAJO ASOCIADO"]
["COTIZANTE MIEMBRO DE LA CARRERA DIPLOMATICA O CONSULAR DE UN PAIS EXTRANJERO O FUNCIONARIO DE ORGANISMO MULTILATERAL",32,null,null,null,null,null,null,null,null,null,null,"32. COTIZANTE MIEMBRO DE LA CARRERA DIPLOMATICA O CONSULAR DE UN PAIS EXTRANJERO O FUNCIONARIO DE ORGANISMO MULTILATERAL"]
["BENEFICIARIO DEL FONDO DE SOLIDARIDAD PENSIONAL",33,"X","X","X","X",null,null,null,null,null,null,"33. BENEFICIARIO DEL FONDO DE SOLIDARIDAD PENSIONAL"]
["CONCEJAL MUNICIPAL O DISTRITAL O EDIL DE JUNTA ADMINISTRATIVA LOCAL QUE PERCIBE HONORARIOS AMPARADO POR POLIZA DE SALUD",34,null,"X","X","X",null,null,null,null,null,null,"34. CONCEJAL MUNICIPAL O DISTRITAL O EDIL DE JUNTA ADMINISTRATIVA LOCAL QUE PERCIBE HONORARIOS AMPARADO POR POLIZA DE SALUD"]
["CONCEJAL MUNICIPAL O DISTRITAL QUE PERCIBE HONORARIOS NO AMPARADO CON PÓLIZA DE SALUD",35,"X","X","X","X","X",null,null,null,null,null,"35. CONCEJAL MUNICIPAL O DISTRITAL QUE PERCIBE HONORARIOS NO AMPARADO CON PÓLIZA DE SALUD"]
["CONCEJAL MUNICIPAL O DISTRITAL QUE PERCIBE HONORARIOS NO AMPARADO CON PÓLIZA DE SALUD BENEFICIARIO DEL FONDO DE SOLIDARIDAD PENSIONAL.",36,"X","X","X","X","X",null,null,null,null,null,"36. CONCEJAL MUNICIPAL O DISTRITAL QUE PERCIBE HONORARIOS NO AMPARADO CON PÓLIZA DE SALUD BENEFICIARIO DEL FONDO DE SOLIDARIDAD PENSIONAL."]
["BENEFICIARIO UPC ADICIONAL",40,"X",null,null,null,null,null,null,null,null,null,"40. BENEFICIARIO UPC ADICIONAL"]
["BENEFICIARIO SIN INGRESOS CON PAGO POR TERCERO",41,"X",null,null,null,null,null,null,null,null,null,"41. BENEFICIARIO SIN INGRESOS CON PAGO POR TERCERO"]
["COTIZANTE PAGO SOLO SALUD ARTICULO 2 LEY 1250 DE 2008 (INDEPENDIENTES DE BAJOS INGRESOS)",42,"X",null,null,null,null,null,null,null,null,null,"42. COTIZANTE PAGO SOLO SALUD ARTICULO 2 LEY 1250 DE 2008 (INDEPENDIENTES DE BAJOS INGRESOS)"]
["COTIZANTE VOLUNTARIO A PENSIONES CON PAGO POR TERCERO",43,"X","X","X","X",null,null,null,null,null,null,"43. COTIZANTE VOLUNTARIO A PENSIONES CON PAGO POR TERCERO"]
["COTIZANTE DEPENDIENTE DE EMPLEO DE EMERGENCIA CON DURACION MAYOR O IGUAL A UN MES",44,"X","X","X","X","X",null,null,null,null,null,"44. COTIZANTE DEPENDIENTE DE EMPLEO DE EMERGENCIA CON DURACION MAYOR O IGUAL A UN MES"]
["COTIZANTE DEPENDIENTE DE EMPLEO DE EMERGENCIA CON DURACION MENOR A UN MES",45,"X",null,null,null,"X",null,null,null,null,null,"45. COTIZANTE DEPENDIENTE DE EMPLEO DE EMERGENCIA CON DURACION MENOR A UN MES"]
["TRABAJADOR DEPENDIENTE DE ENTIDAD BENEFICIARIA DEL SISTEMA GENERAL DE PARTICIPACIONES - APORTES PATRONALES",47,"X","X","X","X",null,null,null,null,null,null,"47. TRABAJADOR DEPENDIENTE DE ENTIDAD BENEFICIARIA DEL SISTEMA GENERAL DE PARTICIPACIONES - APORTES PATRONALES"]
["TRABAJADOR DE TIEMPO PARCIAL DECRETO 2616 DE 2013 AFILIADO AL RÉGIMEN SUBSIDIADO EN SALUD",51,null,"X","X","X","X","X",null,null,null,null,"51. TRABAJADOR DE TIEMPO PARCIAL DECRETO 2616 DE 2013 AFILIADO AL RÉGIMEN SUBSIDIADO EN SALUD"]
["BENEFICIARIO DEL MECANISMO DE PROTECCIÓN AL CESANTE",52,"X","X","X","X",null,null,null,null,null,null,"52. BENEFICIARIO DEL MECANISMO DE PROTECCIÓN AL CESANTE"]
["AFILIADO PARTICIPE",53,"X","X","X","X","X",null,null,null,null,null,"53. AFILIADO PARTICIPE"]
["PREPENSIONADO DE ENTIDAD EN LIQUIDACIÓN.",54,null,"X","X","X",null,null,null,null,null,null,"54. PREPENSIONADO DE ENTIDAD EN LIQUIDACIÓN."]
[]
[]
["Tabla 14. R07- Regla de validación – Tipo de Cotizante  Vs Subtipo de Cotizante"]
["TIPO COTIZANTE","CODIGO","Subtipos de cotizantes"]
[null,null,1,2,3,4,5,6,9,10,11,12]
["DEPENDIENTE",1,"X",null,"X","X","X","X","X",null,"X","X"]
["SERVICIO DOMESTICO",2,"X",null,"X","X","X"]
["INDEPENDIENTE",3,null,"X","X","X","X","X","X","X","X","X"]
["MADRE COMUNITARIA",4]
["APRENDICES DEL SENA EN ETAPA LECTIVA",12]
["DESEMPLEADO CON SUBSIDIO DE CAJA DE COMPENSACION FAMILIAR",15]
["INDEPENDIENTE AGREMIADO O ASOCIADO",16,null,"X","X","X","X",null,"X","X","X"]
["FUNCIONARIOS PUBLICOS SIN TOPE MAXIMO DE IBC",18,"X",null,"X","X","X","X","X"]
["APRENDICES DEL SENA EN ETAPA PRODUCTIVA",19]
["ESTUDIANTES (REGIMEN ESPECIAL LEY 789 DE 2002)",20]
["ESTUDIANTES DE POSTGRADO EN SALUD",21]
["PROFESOR DE ESTABLECIMIENTO PARTICULAR",22,"X",null,"X","X","X","X","X"]
["DEPENDIENTE ENTIDADES O UNIVERSIDADES PUBLICAS CON REGIMEN ESPECIAL EN SALUD",30,"X",null,"X","X","X","X","X"]
["COOPERADOS O PRECOOPERATIVAS DE TRABAJO ASOCIADO",31,"X",null,"X","X","X"]
["COTIZANTE MIEMBRO DE LA CARRERA DIPLOMATICA O CONSULAR DE UN PAIS EXTRANJERO O FUNCIONARIO DE ORGANISMO MULTILATERAL",32,"X",null,"X","X","X","X","X"]
["BENEFICIARIO DEL FONDO DE SOLIDARIDAD PENSIONAL",33]
["CONCEJAL MUNICIPAL O DISTRITAL O EDIL DE JUNTA ADMINISTRATIVA LOCAL QUE PERCIBE HONORARIOS AMPARADO POR POLIZA DE SALUD",34,null,"X","X","X","X","X"]
["CONCEJAL MUNICIPAL O DISTRITAL QUE PERCIBE HONORARIOS NO AMPARADO CON PÓLIZA DE SALUD",35,null,"X","X","X","X","X"]
["CONCEJAL MUNICIPAL O DISTRITAL QUE PERCIBE HONORARIOS NO AMPARADO CON PÓLIZA DE SALUD BENEFICIARIO DEL FONDO DE SOLIDARIDAD PENSIONAL.",36]
["BENEFICIARIO UPC ADICIONAL",40]
["BENEFICIARIO SIN INGRESOS CON PAGO POR TERCERO",41]
["COTIZANTE PAGO SOLO SALUD ARTICULO 2 LEY 1250 DE 2008 (INDEPENDIENTES DE BAJOS INGRESOS)",42]
["COTIZANTE VOLUNTARIO A PENSIONES CON PAGO POR TERCERO",43]
["COTIZANTE DEPENDIENTE DE EMPLEO DE EMERGENCIA CON DURACION MAYOR O IGUAL A UN MES",44,"X",null,"X","X","X"]
["COTIZANTE DEPENDIENTE DE EMPLEO DE EMERGENCIA CON DURACION MENOR A UN MES",45]
["TRABAJADOR DEPENDIENTE DE ENTIDAD BENEFICIARIA DEL SISTEMA GENERAL DE PARTICIPACIONES - APORTES PATRONALES",47,"X",null,"X","X","X","X","X"]
["TRABAJADOR DE TIEMPO PARCIAL DECRETO 2616 DE 2013 AFILIADO AL RÉGIMEN SUBSIDIADO EN SALUD",51,"X",null,"X","X","X","X","X"]
["BENEFICIARIO DEL MECANISMO DE PROTECCIÓN AL CESANTE",52,null,"X","X","X","X","X"]
["AFILIADO PARTICIPE",53,"X",null,"X","X","X","X","X"]
["PREPENSIONADO DE ENTIDAD EN LIQUIDACIÓN.",54]
[]
[]
["Tabla 9.  R04 - Regla de validación – Tipo de Cotizante  Vs Tipo  de Aportantes"]
["TIPO COTIZANTE","CODIGO","Tipo de Aportante"]
[null,null,1,3,5,6,2,4,8,7,9,10,11]
["DEPENDIENTE",1,"X","X",null,"X"]
["SERVICIO DOMESTICO",2,null,null,null,null,"X"]
["INDEPENDIENTE",3,null,null,null,null,"X",null,null,null,"X"]
["MADRE COMUNITARIA",4,null,null,null,null,null,null,null,"X"]
["APRENDICES DEL SENA EN ETAPA LECTIVA",12,"X","X",null,"X"]
["DESEMPLEADO CON SUBSIDIO DE CAJA DE COMPENSACION FAMILIAR",15,"X"]
["INDEPENDIENTE AGREMIADO O ASOCIADO",16,null,null,null,null,null,"X"]
["FUNCIONARIOS PUBLICOS SIN TOPE MAXIMO DE IBC",18,"X","X"]
["APRENDICES DEL SENA EN ETAPA PRODUCTIVA",19,"X","X",null,"X"]
["ESTUDIANTES (REGIMEN ESPECIAL LEY 789 DE 2002)",20,"X","X",null,"X"]
["ESTUDIANTES DE POSTGRADO EN SALUD",21,"X","X",null,"X"]
["PROFESOR DE ESTABLECIMIENTO PARTICULAR",22,"X"]
["DEPENDIENTE ENTIDADES O UNIVERSIDADES PUBLICAS CON REGIMEN ESPECIAL EN SALUD",30,"X"]
["COOPERADOS O PRECOOPERATIVAS DE TRABAJO ASOCIADO",31,null,null,"X"]
["COTIZANTE MIEMBRO DE LA CARRERA DIPLOMATICA O CONSULAR DE UN PAIS EXTRANJERO O FUNCIONARIO DE ORGANISMO MULTILATERAL",32,null,null,null,"X"]
["BENEFICIARIO DEL FONDO DE SOLIDARIDAD PENSIONAL",33,null,null,null,null,"X"]
["CONCEJAL MUNICIPAL O DISTRITAL O EDIL DE JUNTA ADMINISTRATIVA LOCAL QUE PERCIBE HONORARIOS AMPARADO POR POLIZA DE SALUD",34,null,null,null,null,null,null,"X"]
["CONCEJAL MUNICIPAL O DISTRITAL QUE PERCIBE HONORARIOS NO AMPARADO CON PÓLIZA DE SALUD",35,null,null,null,null,null,null,"X"]
["CONCEJAL MUNICIPAL O DISTRITAL QUE PERCIBE HONORARIOS NO AMPARADO CON PÓLIZA DE SALUD BENEFICIARIO DEL FONDO DE SOLIDARIDAD PENSIONAL.",36,null,null,null,null,null,null,"X"]
["BENEFICIARIO UPC ADICIONAL",40,"X","X","X","X","X","X","X","X","X","X"]
["BENEFICIARIO SIN INGRESOS CON PAGO POR TERCERO",41]
["COTIZANTE PAGO SOLO SALUD ARTICULO 2 LEY 1250 DE 2008 (INDEPENDIENTES DE BAJOS INGRESOS)",42,null,null,null,null,"X"]
["COTIZANTE VOLUNTARIO A PENSIONES CON PAGO POR TERCERO",43,null,null,null,null,"X"]
["COTIZANTE DEPENDIENTE DE EMPLEO DE EMERGENCIA CON DURACION MAYOR O IGUAL A UN MES",44,"X"]
["COTIZANTE DEPENDIENTE DE EMPLEO DE EMERGENCIA CON DURACION MENOR A UN MES",45,"X"]
["TRABAJADOR DEPENDIENTE DE ENTIDAD BENEFICIARIA DEL SISTEMA GENERAL DE PARTICIPACIONES - APORTES PATRONALES",47,"X"]
["TRABAJADOR DE TIEMPO PARCIAL DECRETO 2616 DE 2013 AFILIADO AL RÉGIMEN SUBSIDIADO EN SALUD",51,"X"]
["BENEFICIARIO DEL MECANISMO DE PROTECCIÓN AL CESANTE",52,"X"]
["AFILIADO PARTICIPE",53,null,null,null,null,null,null,null,null,null,"X"]
["PREPENSIONADO DE ENTIDAD EN LIQUIDACIÓN.",54,null,null,null,null,null,null,null,null,null,null,"X"]
[]
[]
["Subtipo cotizante  Vs. Aporte a PENSION"]
["SUBTIPO COTIZANTE","CODIGO","Aporte PENSIÓN"]
["DEPENDIENTE PENSIONADO POR VEJEZ ACTIVO",1,null,null,null,null,null,null,null,null,null,null,{"$f":"B110&\". \"&A110","v":"1. DEPENDIENTE PENSIONADO POR VEJEZ ACTIVO"}]
["INDEPENDIENTE PENSIONADO POR VEJEZ ACTIVO",2,null,null,null,null,null,null,null,null,null,null,"2. INDEPENDIENTE PENSIONADO POR VEJEZ ACTIVO"]
["COTIZANTE NO OBLIGADO A COTIZAR A PENSIÓN POR EDAD",3,null,null,null,null,null,null,null,null,null,null,"3. COTIZANTE NO OBLIGADO A COTIZAR A PENSIÓN POR EDAD"]
["COTIZANTE CON REQUISITOS CUMPLIDOS PARA PENSIÓN",4,null,null,null,null,null,null,null,null,null,null,"4. COTIZANTE CON REQUISITOS CUMPLIDOS PARA PENSIÓN"]
["COTIZANTE A QUIEN SE LE HA RECONOCIDO INDEMNIZACIÓN SUSTITUTIVA O DEVOLUCIÓN DE SALDOS",5,null,null,null,null,null,null,null,null,null,null,"5. COTIZANTE A QUIEN SE LE HA RECONOCIDO INDEMNIZACIÓN SUSTITUTIVA O DEVOLUCIÓN DE SALDOS"]
["COTIZANTE PERTENECIENTE A UN RÉGIMEN DE EXCEPTUADO DE PENSIONES A ENTIDADES AUTORIZADAS PARA RECIBIR APORTES EXCLUSIVAMENTE DE UN GRUPO DE SUS PROPIOS TRABAJADORES",6,null,null,null,null,null,null,null,null,null,null,"6. COTIZANTE PERTENECIENTE A UN RÉGIMEN DE EXCEPTUADO DE PENSIONES A ENTIDADES AUTORIZADAS PARA RECIBIR APORTES EXCLUSIVAMENTE DE UN GRUPO DE SUS PROPIOS TRABAJADORES"]
["COTIZANTE PENSIONADO CON MESADA SUPERIOR A 25 SMLMV",9,null,null,null,null,null,null,null,null,null,null,"9. COTIZANTE PENSIONADO CON MESADA SUPERIOR A 25 SMLMV"]
["RESIDENTE EN EL EXTERIOR AFILIADO VOLUNTARIO AL SISTEMA GENERAL DE PENSIONES Y/O  AFILIADO  FACULTATIVO AL SISTEMA DE SUBSIDIO FAMILIAR DECRETO 682 DE 2014",10,null,null,null,null,null,null,null,null,null,null,"10. RESIDENTE EN EL EXTERIOR AFILIADO VOLUNTARIO AL SISTEMA GENERAL DE PENSIONES Y/O  AFILIADO  FACULTATIVO AL SISTEMA DE SUBSIDIO FAMILIAR DECRETO 682 DE 2014"]
["CONDUCTORES DEL SERVICIO PÚBLICO DE TRANSPORTE TERRESTRE AUTOMOTOR INDIVIDUAL DE PASAJEROS EN VEHÍCULOS TAXI DECRETO 1047 DE 2014",11,"X",null,null,null,null,null,null,null,null,null,"11. CONDUCTORES DEL SERVICIO PÚBLICO DE TRANSPORTE TERRESTRE AUTOMOTOR INDIVIDUAL DE PASAJEROS EN VEHÍCULOS TAXI DECRETO 1047 DE 2014"]
["CONDUCTORES SERVICIO TAXI NO APORTE PENSIÓN DEC. 1047",12,null,null,null,null,null,null,null,null,null,null,"12. CONDUCTORES SERVICIO TAXI NO APORTE PENSIÓN DEC. 1047"]
[]
[]
["3. MALLA TIPO DOCUMENTO"]
["DESCRIPCION","SIGLA"]
["CEDULA CIUDADANIA","CC"]
["CEDULA EXTRANJERIA","CE"]
["TARJETA DE IDENTIDAD","TI"]
["PASAPORTE","PA"]
["NIT","NI"]
[]
[]
["4. MALLA MESES"]
["DESCRIPCION","CODIGO"]
["ENERO",1]
["FEBRERO",2]
["MARZO",3]
["ABRIL",4]
["MAYO",5]
["JUNIO",6]
["JULIO",7]
["AGOSTO",8]
["SEPTIEMBRE",9]
["OCTUBRE",10]
["NOVIEMBRE",11]
["DICIEMBRE",12]
[]
[]
["5. MALLA TIPO DE PAGO"]
["DESCRIPCION"]
["TP SALARIAL"]
["TP NO SALARIAL"]
["TP NO SALARIAL MARCADO SALARIAL POR LA UGPP"]
["TP COMPENSACIÓN ORDINARIA"]
["TP COMPENSACIÓN EXTRAORDINARIA"]
["TP NO COMPENSACIÓN"]
["TP NO COMPENSACIÓN MARCADA COMO COMP.EXTRAORDINARIA"]
["TP INCAPACIDAD"]
["TP VACACIONES"]
["TP LICENCIA REMUNERADA"]
["TP NO SALARIAL PUBLICA"]
["TP NO SALARIAL PUBLICA"]
[]
[]
["6. MALLA TIPO DE APORTANTE"]
["DESCRIPCION","CODIGO"]
["EMPLEADOR",1]
["INDEPENDIENTE",2]
["ENTIDADES O UNIVERSIDADES PÚBLICAS CON RÉGIMEN ESPECIAL EN SALUD",3]
["AGREMIACIONES O ASOCIACIONES",4]
["COOPERATIVAS Y PRECOOPERATIVAS DE TRABAJO ASOCIADO",5]
["MISIONES DIPLOMÁTICAS, CONSULARES O DE ORGANISMOS MULTILATERALES NO SOMETIDOS A LA LEGISLACIÓN COLOMBIANA",6]
["ORGANIZACIONES ADMINISTRADORAS DEL PROGRAMA DE HOGARES DE BIENESTAR",7]
["PAGADOR DE APORTES DE LOS CONCEJALES MUNICIPALES O DISTRITALES",8]
["PAGADOR DE APORTES CONTRATO SINDICAL",9]
[]
[]
["7. MALLA NATURALEZA JURIDICA"]
["DESCRIPCION","CODIGO"]
["PÚBLICA",1]
["PRIVADA",2]
["MIXTA",3]
["ORGANISMOS MULTILATERALES",4]
["ENTIDADES DE DERECHO PÚBLICO NO SOMETIDAS A LA LEGISLACIÓN COLOMBIANA",5]
[]
[]
["8. MALLA SUB SISTEMA ASOCIADO"]
["DESCRIPCION","CODIGO"]
["SALUD",1]
["PENSION",2]
["ARL",3]
["CCF",4]
["SENA",5]
["ICBF",6]

{"sheet":"Subsistemas x Tipo de Pago","index":3,"n_rows":20,"n_cols":13,"rows_kept":20,"cut":false,"hidden":true,"merged":[]}
[]
[]
[null,null,null,null,"SUBSISTEMAS"]
[null,"NATURALEZA JURIDICA","TIPO DE APORTANTE","TIPO DE PAGO UGPP","SALUD","PENSION","RIESGOS LABORALES","CAJA DE COMPENSACION","SENA","ICBF","NOMBRE CONCEPTO UGPP"]
[null,"1 Pública\n2 Privada\n3 Mixta\n4 Organismos multilaterales\n5 Entidades de derecho público no sometidas a la legislación colombiana","1 Empleador.\n2 Independiente.\n3 Entidades o Universidades Públicas con régimen especial en Salud.\n4 Agremiaciones o asociaciones.\n5 Cooperativas y Precooperativas de Trabajo Asociado\n6 Misiones diplomáticas, consulares o de organismos multilaterales no sometidos a la legislación colombiana.\n7 Organizaciones Administradoras del Programa de Hogares de Bienestar.\n8 Pagador de aportes de los concejales municipales o distritales.\n9 Pagador de aportes contrato sindical","TP SALARIAL",1,2,3,4,5,6,"SUELDOS\nAPOYO SOSTENIMIENTO\nCOMISIONES\nHORAS EXTRAS\nBONIFICACIONES\nPRIMAS\nVIATICOS\nAUXILIOS\nOTROS PAGOS",null,"1;2;3;4;5;6"]
[null,"2 Privada\n3 Mixta\n4 Organismos multilaterales\n5 Entidades de derecho público no sometidas a la legislación colombiana","1 Empleador.\n2 Independiente.\n3 Entidades o Universidades Públicas con régimen especial en Salud.\n4 Agremiaciones o asociaciones.\n5 Cooperativas y Precooperativas de Trabajo Asociado\n6 Misiones diplomáticas, consulares o de organismos multilaterales no sometidos a la legislación colombiana.\n7 Organizaciones Administradoras del Programa de Hogares de Bienestar.\n8 Pagador de aportes de los concejales municipales o distritales.\n9 Pagador de aportes contrato sindical","TP NO SALARIAL",null,null,null,null,null,null,"BONIFICACIONES\nPRIMAS\nVIATICOS\nAUXILIOS\nOTROS PAGOS"]
[null,"1 Pública\n2 Privada\n3 Mixta\n4 Organismos multilaterales\n5 Entidades de derecho público no sometidas a la legislación colombiana","1 Empleador.\n2 Independiente.\n3 Entidades o Universidades Públicas con régimen especial en Salud.\n4 Agremiaciones o asociaciones.\n5 Cooperativas y Precooperativas de Trabajo Asociado\n6 Misiones diplomáticas, consulares o de organismos multilaterales no sometidos a la legislación colombiana.\n7 Organizaciones Administradoras del Programa de Hogares de Bienestar.\n8 Pagador de aportes de los concejales municipales o distritales.\n9 Pagador de aportes contrato sindical","TP NO SALARIAL MARCADO SALARIAL POR LA UGPP",1,2,3,4,5,6,"BONIFICACIONES\nPRIMAS\nVIATICOS\nAUXILIOS\nOTROS PAGOS",null,"1;2;3;4;5;6"]
[null,"2 Privada\n","5 Cooperativas y Precooperativas de Trabajo Asociado","TP COMPENSACIÓN ORDINARIA",1,2,3,4,5,6,"COMP. ORDINARIA\n",null,"1;2;3;4;5;6"]
[null,"2 Privada\n","5 Cooperativas y Precooperativas de Trabajo Asociado","TP COMPENSACIÓN EXTRAORDINARIA",1,2,3,4,null,null,"COMP. EXTRAORDINARIA\n",null,"1;2;3;4"]
[null,"2 Privada\n","5 Cooperativas y Precooperativas de Trabajo Asociado","TP NO COMPENSACIÓN",null,null,null,null,null,null,"BONIFICACIONES\nPRIMAS\nVIATICOS\nAUXILIOS\nOTROS PAGOS"]
[null,"2 Privada\n","5 Cooperativas y Precooperativas de Trabajo Asociado","TP NO COMPENSACIÓN MARCADA COMO COMP.EXTRAORDINARIA",1,2,3,4,null,null,"BONIFICACIONES\nPRIMAS\nVIATICOS\nAUXILIOS\nOTROS PAGOS",null,"1;2;3;4"]
[null,"1 Pública\n2 Privada\n3 Mixta\n4 Organismos multilaterales\n5 Entidades de derecho público no sometidas a la legislación colombiana","1 Empleador.\n2 Independiente.\n3 Entidades o Universidades Públicas con régimen especial en Salud.\n4 Agremiaciones o asociaciones.\n5 Cooperativas y Precooperativas de Trabajo Asociado\n6 Misiones diplomáticas, consulares o de organismos multilaterales no sometidos a la legislación colombiana.\n7 Organizaciones Administradoras del Programa de Hogares de Bienestar.\n8 Pagador de aportes de los concejales municipales o distritales.\n9 Pagador de aportes contrato sindical","TP INCAPACIDAD",1,2,null,null,null,null,"INCAPACIDADES\n",null,"1;2"]
[null,"1 Pública\n2 Privada\n3 Mixta\n4 Organismos multilaterales\n5 Entidades de derecho público no sometidas a la legislación colombiana","1 Empleador.\n2 Independiente.\n3 Entidades o Universidades Públicas con régimen especial en Salud.\n4 Agremiaciones o asociaciones.\n5 Cooperativas y Precooperativas de Trabajo Asociado\n6 Misiones diplomáticas, consulares o de organismos multilaterales no sometidos a la legislación colombiana.\n7 Organizaciones Administradoras del Programa de Hogares de Bienestar.\n8 Pagador de aportes de los concejales municipales o distritales.\n9 Pagador de aportes contrato sindical","TP VACACIONES",null,null,null,4,5,6,"VACACIONES\n",null,"4;5;6"]
[null,"1 Pública\n2 Privada\n3 Mixta\n4 Organismos multilaterales\n5 Entidades de derecho público no sometidas a la legislación colombiana","1 Empleador.\n2 Independiente.\n3 Entidades o Universidades Públicas con régimen especial en Salud.\n4 Agremiaciones o asociaciones.\n5 Cooperativas y Precooperativas de Trabajo Asociado\n6 Misiones diplomáticas, consulares o de organismos multilaterales no sometidos a la legislación colombiana.\n7 Organizaciones Administradoras del Programa de Hogares de Bienestar.\n8 Pagador de aportes de los concejales municipales o distritales.\n9 Pagador de aportes contrato sindical","TP VACACIONES TERMINACION DE CONTRATO",null,null,null,4,5,6,"VACACIONES TERMINACION DE CONTRATO",null,"4;5;6"]
[null,"1 Pública\n2 Privada\n3 Mixta\n4 Organismos multilaterales\n5 Entidades de derecho público no sometidas a la legislación colombiana","1 Empleador.\n2 Independiente.\n3 Entidades o Universidades Públicas con régimen especial en Salud.\n4 Agremiaciones o asociaciones.\n5 Cooperativas y Precooperativas de Trabajo Asociado\n6 Misiones diplomáticas, consulares o de organismos multilaterales no sometidos a la legislación colombiana.\n7 Organizaciones Administradoras del Programa de Hogares de Bienestar.\n8 Pagador de aportes de los concejales municipales o distritales.\n9 Pagador de aportes contrato sindical","TP LICENCIA REMUNERADA",null,null,null,null,null,null,"LICENCIA REMUNERADA"]
[null,"1 Pública\n","1 Empleador.\n3 Entidades o Universidades Públicas con régimen especial en Salud.\n6 Misiones diplomáticas, consulares o de organismos multilaterales no sometidos a la legislación colombiana.\n7 Organizaciones Administradoras del Programa de Hogares de Bienestar.\n8 Pagador de aportes de los concejales municipales o distritales.\n9 Pagador de aportes contrato sindical","TP NO SALARIAL PUBLICA",null,null,null,null,null,null,"BONIFICACIONES\nPRIMAS\nVIATICOS\nAUXILIOS\nOTROS PAGOS"]
[null,"1 Pública\n","1 Empleador.\n3 Entidades o Universidades Públicas con régimen especial en Salud.\n6 Misiones diplomáticas, consulares o de organismos multilaterales no sometidos a la legislación colombiana.\n7 Organizaciones Administradoras del Programa de Hogares de Bienestar.\n8 Pagador de aportes de los concejales municipales o distritales.\n9 Pagador de aportes contrato sindical","TP NO SALARIAL PUBLICA NO ACEPTADO UGPP","NO VALIDAR","NO VALIDAR","NO VALIDAR","NO VALIDAR","NO VALIDAR","NO VALIDAR","BONIFICACIONES\nPRIMAS\nVIATICOS\nAUXILIOS\nOTROS PAGOS"]
[null,"2 Privada","2 Independiente.","TP CONTRATISTA",1,2,3,null,null,null,"SUELDOS",null,"1;2;3"]
[null,"2 Privada","2 Independiente.","TP NO CONTRATISTA",1,2,null,null,null,null,"SUELDOS",null,"1;2"]
[null,"1 Pública\n2 Privada\n3 Mixta\n4 Organismos multilaterales\n5 Entidades de derecho público no sometidas a la legislación colombiana","1 Empleador.\n3 Entidades o Universidades Públicas con régimen especial en Salud.\n4 Agremiaciones o asociaciones.\n5 Cooperativas y Precooperativas de Trabajo Asociado\n6 Misiones diplomáticas, consulares o de organismos multilaterales no sometidos a la legislación colombiana.\n7 Organizaciones Administradoras del Programa de Hogares de Bienestar.\n8 Pagador de aportes de los concejales municipales o distritales.","TP PRESTACIONES",null,null,null,null,null,null,"CESANTIAS\nINTERESES DE CESANTIAS\nPRIMAS"]

{"sheet":"TABLAS","index":4,"n_rows":166,"n_cols":33,"rows_kept":166,"cut":false,"hidden":true,"merged":[]}
[]
[]
[]
["TIPO DOCUMENTO APORTANTE","NATURALEZA JURIDICA","TIPO DE APORTANTE","APORTA ESAP Y MEN","SUJETO PASIVO DEL IMPUESTO SOBRE LA RENTA PARA LA EQUIDAD CREE","TIPO DE ACTO","TIPO COTIZANTE","SUBTIPO COTIZANTE","CONDICION ESPECIAL EMPRESA","EXTRANJERO NO OBLIGADO A COTIZAR PENSION","COLOMBIANO EN EL EXTERIOR","ACTIVIDAD ALTO RIESGO PENSION","TIPO DOCUMENTO ACTUAL DEL COTIZANTE","AÑO","MES","SALARIO INTEGRAL",null,"LLAVE","GRUPO",null,"NATURALEZA JURIDICA","TIPO DE APORTANTE","LLAVE","GRUPO","TIPO DE PAGO UGPP",null,"TIPO DE PAGO UGPP","GRUPO TP","SUBSISTEMAS",null,"TIPO DE PAGO UGPP","GRUPO TP","NOMBRE CONCEPTO UGPP"]
[null,null,null,null,null,null,null,null,null,null,null,null,null,null,null,null,null,"11","PublicaEmp",null,"1 Pública","1 Empleador.",11,"PublicaEmp","TP SALARIAL","Y5","TP SALARIAL","SAL","1;2;3;4;5;6",null,"TP SALARIAL","SAL","SUELDOS"]
["CC",1,1,"X","SI","REQUERIMIENTO",1,0,"LEY 590/2000 AÑO 1","X","X","X","CC",2007,1,"X",null,"13","PublicaUniv",null,"1 Pública","1 Empleador.",11,"PublicaEmp","TP A ESTUDIANTES O APRENDICES","Y6","TP NO SALARIAL MARCADO SALARIAL POR LA UGPP","NOSALX","1;2;3;4;5;6",null,"TP SALARIAL","SAL","COMISIONES"]
["CE",2,null,null,"NO","AMPLIACIÓN",2,1,"LEY 590/2000 AÑO 2",null,null,null,"CE",2008,2,null,null,"18","PublicaConc",null,"1 Pública","1 Empleador.",11,"PublicaEmp","TP INCAPACIDAD","Y7","TP COMPENSACIÓN ORDINARIA","COMPORD","1;2;3;4;5;6",null,"TP SALARIAL","SAL","HORAS EXTRAS"]
["TI",3,3,null,null,"LIQUIDACIÓN",3,2,"LEY 590/2000 AÑO 3",null,null,null,"TI",2009,3,null,null,"19","PublicaSind",null,"1 Pública","1 Empleador.",11,"PublicaEmp","TP VACACIONES","Y8","TP COMPENSACIÓN EXTRAORDINARIA","COMPEXT","1;2;3;4",null,"TP SALARIAL","SAL","BONIFICACIONES"]
["PA",4,4,null,null,"RECURSO",4,3,"LEY 1429 Col AÑO 1,2",null,null,null,"PA",2010,4,null,null,"21","PrivadaEmp",null,"1 Pública","1 Empleador.",11,"PublicaEmp","TP VACACIONES TERMINACION DE CONTRATO","Y9","TP NO COMPENSACIÓN MARCADA COMO COMP.EXTRAORDINARIA","NOCOMPX","1;2;3;4",null,"TP SALARIAL","SAL","PRIMAS"]
["NI",5,5,null,null,null,12,4,"LEY 1429 Col AÑO 3",null,null,null,"NI",2011,5,null,null,"22","PrivadaInd",null,"1 Pública","1 Empleador.",11,"PublicaEmp","TP LICENCIA REMUNERADA","Y10","TP DESCANSO ANUAL","DEA","1;2;4",null,"TP SALARIAL","SAL","VIATICOS"]
[null,null,6,null,null,null,15,5,"LEY 1429 Col AÑO 4",null,null,null,null,2012,6,null,null,"24","PrivadaAgrem",null,"1 Pública","1 Empleador.",11,"PublicaEmp","TP NO SALARIAL","Y11","TP INCAPACIDAD","INCAP","1;2",null,"TP SALARIAL","SAL","AUXILIOS"]
[null,null,7,null,null,null,16,6,"LEY 1429 Col AÑO 5",null,null,null,null,2013,7,null,null,"25","PrivadaCTA",null,"1 Pública","1 Empleador.",11,"PublicaEmp","TP PRESTACIONES","Y12","TP VACACIONES","VACA","4;5;6",null,"TP SALARIAL","SAL","OTROS PAGOS"]
[null,null,8,null,null,null,18,9,"LEY 1429 AGV AÑO 1 - 8",null,null,null,null,2014,8,null,null,"27","PrivadaHorg","TP NO SALARIAL PACTADO","1 Pública","1 Empleador.",11,"PublicaEmp",null,"Y13","TP CONTRATISTA","CONTRA","1;2",null,"TP NO SALARIAL","NOSAL","BONIFICACIONES"]
[null,null,9,null,null,null,19,10,"LEY 1429 AGV AÑO 9",null,null,null,null,2015,9,null,null,"29","PrivadaSind","TP MERA LIBERALIDAD HABITUAL","1 Pública","1 Empleador.",11,"PublicaEmp",null,"Y14","TP NO CONTRATISTA","NOCONTRA","1;2",null,"TP NO SALARIAL","NOSAL","PRIMAS"]
[null,null,null,null,null,null,20,11,"LEY 1429 AGV AÑO 10",null,null,null,null,2016,10,null,null,"31","MixtaEmp","TP MERA LIBERALIDAD OCASIONAL","1 Pública","1 Empleador.",11,"PublicaEmp",null,"Y15","TP PRESTACIONES","PRESTAC",null,null,"TP NO SALARIAL","NOSAL","VIATICOS"]
[null,null,null,null,null,null,21,12,"Soc.declaradas Zona Franca",null,null,null,null,2017,11,null,null,"39","MixtaSind",null,"1 Pública","3 Entidades o Universidades Públicas con régimen especial en Salud.",13,"PublicaUniv","TP SALARIAL","Y16","TP NO SALARIAL","NOSAL",null,null,"TP NO SALARIAL","NOSAL","AUXILIOS"]
[null,null,null,null,null,null,22,null,"Excepción SENA Art.181,Ley 223/95",null,null,null,null,2018,12,null,null,"46","OrgMisionD",null,"1 Pública","3 Entidades o Universidades Públicas con régimen especial en Salud.",13,"PublicaUniv","TP A ESTUDIANTES O APRENDICES","Y17","TP NO COMPENSACIÓN","NOCOMP",null,null,"TP NO SALARIAL","NOSAL","OTROS PAGOS"]
[null,null,null,null,null,null,23,null,"Conv.Sub.Fam.Art.17Ley 344/96",null,null,null,null,2019,null,null,null,"56","EntMisionD",null,"1 Pública","3 Entidades o Universidades Públicas con régimen especial en Salud.",13,"PublicaUniv","TP INCAPACIDAD","Y18","TP LICENCIA REMUNERADA","LICREM",null,null,"TP NO SALARIAL MARCADO SALARIAL POR LA UGPP","NOSALX","BONIFICACIONES"]
[null,null,null,null,null,null,30,null,null,null,null,null,null,2020,null,null,null,null,null,null,"1 Pública","3 Entidades o Universidades Públicas con régimen especial en Salud.",13,"PublicaUniv","TP VACACIONES","Y19","TP NO SALARIAL PUBLICA","NOSALPUB",null,null,"TP NO SALARIAL MARCADO SALARIAL POR LA UGPP","NOSALX","PRIMAS"]
[null,null,null,null,null,null,31,null,null,null,null,null,null,2021,null,null,null,null,null,null,"1 Pública","3 Entidades o Universidades Públicas con régimen especial en Salud.",13,"PublicaUniv","TP VACACIONES TERMINACION DE CONTRATO","Y20","TP NO SALARIAL PUBLICA NO ACEPTADO UGPP","NOSALPUBX",null,null,"TP NO SALARIAL MARCADO SALARIAL POR LA UGPP","NOSALX","VIATICOS"]
[null,null,null,null,null,null,32,null,null,null,null,null,null,2022,null,null,null,null,null,null,"1 Pública","3 Entidades o Universidades Públicas con régimen especial en Salud.",13,"PublicaUniv","TP LICENCIA REMUNERADA","Y21","TP DOCENTES SIN PAGO","DOCSINPAGO","1;2",null,"TP NO SALARIAL MARCADO SALARIAL POR LA UGPP","NOSALX","AUXILIOS"]
[null,null,null,null,null,null,33,null,null,null,null,null,null,2023,null,null,null,null,null,null,"1 Pública","3 Entidades o Universidades Públicas con régimen especial en Salud.",13,"PublicaUniv","TP NO SALARIAL","Y22","INGRESO BRUTO","INBRUTO",null,null,"TP NO SALARIAL MARCADO SALARIAL POR LA UGPP","NOSALX","OTROS PAGOS"]
[null,null,null,null,null,null,34,null,null,null,null,null,null,2024,null,null,null,null,null,null,"1 Pública","3 Entidades o Universidades Públicas con régimen especial en Salud.",13,"PublicaUniv","TP PRESTACIONES","Y23","TP INDEPENDIENTE","INDEPEND","1;2",null,"TP COMPENSACIÓN ORDINARIA","COMPORD","COMP. ORDINARIA"]
[null,null,null,null,null,null,35,null,null,null,null,null,null,2025,null,null,null,null,null,"TP NO SALARIAL PUBLICA NO ACEPTADO UGPP","1 Pública","3 Entidades o Universidades Públicas con régimen especial en Salud.",13,"PublicaUniv",null,"Y24","TP CONTRATISTA","INDEPENCONTRAT","1;2",null,"TP COMPENSACIÓN EXTRAORDINARIA","COMPEXT","COMP. EXTRAORDINARIA"]
[null,"Publica",null,null,null,null,36,null,null,null,null,null,null,2026,null,null,null,null,null,"TP NO SALARIAL PACTADO","1 Pública","3 Entidades o Universidades Públicas con régimen especial en Salud.",13,"PublicaUniv",null,"Y25","TP CONTRATISTA ARL","INDEPENDCONTRAARL","1;2;3",null,"TP NO COMPENSACIÓN","NOCOMP","BONIFICACIONES"]
[null,"Publica","X",null,null,null,40,null,null,null,null,null,null,2027,null,null,null,null,null,"TP MERA LIBERALIDAD HABITUAL","1 Pública","3 Entidades o Universidades Públicas con régimen especial en Salud.",13,"PublicaUniv",null,"Y26","TP NO SALARIAL PACTADO","TPNOSALARIALPACTADO",null,null,"TP NO COMPENSACIÓN","NOCOMP","PRIMAS"]
[null,"No_Publica",null,null,null,null,41,null,null,null,null,null,null,2028,null,null,null,null,null,"TP MERA LIBERALIDAD OCASIONAL","1 Pública","3 Entidades o Universidades Públicas con régimen especial en Salud.",13,"PublicaUniv",null,"Y27","TP MERA LIBERALIDAD HABITUAL","TPMERALIBERALIDADHABITUAL",null,null,"TP NO COMPENSACIÓN","NOCOMP","VIATICOS"]
[null,null,null,null,null,null,42,null,null,null,null,null,null,2029,null,null,null,null,null,null,"1 Pública","8 Pagador de aportes de los concejales municipales o distritales.",18,"PublicaConc","TP SALARIAL","Y28","TP MERA LIBERALIDAD OCASIONAL","TPMERALIBERALIDADOCASIONAL",null,null,"TP NO COMPENSACIÓN","NOCOMP","AUXILIOS"]
[null,null,null,null,null,null,43,null,null,null,null,null,null,2030,null,null,null,null,null,null,"1 Pública","8 Pagador de aportes de los concejales municipales o distritales.",18,"PublicaConc","TP INCAPACIDAD","Y29","TP COMPENSACIÓN ORDINARIA","TPCOMPENSACIONORDINARIA","1;2;3;4;5;6",null,"TP NO COMPENSACIÓN","NOCOMP","BENEFICIOS"]
[null,null,null,null,null,null,44,null,null,null,null,null,null,2031,null,null,null,null,null,null,"1 Pública","8 Pagador de aportes de los concejales municipales o distritales.",18,"PublicaConc","TP VACACIONES","Y30","TP COMPENSACIÓN EXTRAORDINARIA","TPCOMPENSACIONEXTRAORDINARIA","1;2;3;4",null,"TP NO COMPENSACIÓN","NOCOMP","OTROS PAGOS"]
[null,null,null,null,null,null,45,null,null,null,null,null,null,2032,null,null,null,null,null,null,"1 Pública","8 Pagador de aportes de los concejales municipales o distritales.",18,"PublicaConc","TP VACACIONES TERMINACION DE CONTRATO","Y31","TP DESCANSO ANUAL","TPDESCANSOANUAL","1;2;4",null,"TP NO COMPENSACIÓN MARCADA COMO COMP.EXTRAORDINARIA","NOCOMPX","BONIFICACIONES"]
[null,null,null,null,null,null,47,null,null,null,null,null,null,2033,null,null,null,null,null,null,"1 Pública","8 Pagador de aportes de los concejales municipales o distritales.",18,"PublicaConc","TP LICENCIA REMUNERADA","Y32","TP NO COMPENSACIÓN","TPNOCOMPENSACIÓN",null,null,"TP NO COMPENSACIÓN MARCADA COMO COMP.EXTRAORDINARIA","NOCOMPX","PRIMAS"]
[null,null,null,null,null,null,51,null,null,null,null,null,null,2034,null,null,null,null,null,null,"1 Pública","8 Pagador de aportes de los concejales municipales o distritales.",18,"PublicaConc","TP NO SALARIAL","Y33","TP A ESTUDIANTES O APRENDICES","TPESTUAPRE","1;2;3",null,"TP NO COMPENSACIÓN MARCADA COMO COMP.EXTRAORDINARIA","NOCOMPX","VIATICOS"]
[null,null,null,null,null,null,52,null,null,null,null,null,null,2035,null,null,null,null,null,null,"1 Pública","8 Pagador de aportes de los concejales municipales o distritales.",18,"PublicaConc","TP PRESTACIONES","Y34","TP VACACIONES TERMINACION DE CONTRATO","VACAT","4;5;6",null,"TP NO COMPENSACIÓN MARCADA COMO COMP.EXTRAORDINARIA","NOCOMPX","AUXILIOS"]
[null,null,null,null,null,null,53,null,null,null,null,null,null,null,null,null,null,null,null,"TP NO SALARIAL PUBLICA NO ACEPTADO UGPP","1 Pública","8 Pagador de aportes de los concejales municipales o distritales.",18,"PublicaConc",null,"Y35",null,null,null,null,"TP NO COMPENSACIÓN MARCADA COMO COMP.EXTRAORDINARIA","NOCOMPX","BENEFICIOS"]
[null,null,null,null,null,null,null,null,null,null,null,null,null,null,null,null,null,null,null,"TP NO SALARIAL PACTADO","1 Pública","8 Pagador de aportes de los concejales municipales o distritales.",18,"PublicaConc",null,"Y36",null,null,null,null,"TP NO COMPENSACIÓN MARCADA COMO COMP.EXTRAORDINARIA","NOCOMPX","OTROS PAGOS"]
[null,null,null,null,null,null,null,null,null,null,null,null,null,2036,null,null,null,null,null,"TP MERA LIBERALIDAD HABITUAL","1 Pública","8 Pagador de aportes de los concejales municipales o distritales.",18,"PublicaConc",null,"Y37",null,null,null,null,"TP DESCANSO ANUAL","DEA","DESC. ANUAL REMUNERADO"]
[null,null,null,null,null,null,54,null,null,null,null,null,null,2037,null,null,null,null,null,"TP MERA LIBERALIDAD OCASIONAL","1 Pública","8 Pagador de aportes de los concejales municipales o distritales.",18,"PublicaConc",null,"Y38",null,null,null,null,"TP DESCANSO ANUAL","DEA","DESC. ANUAL TERM CONTRATO"]
[null,null,null,null,null,null,55,null,null,null,null,null,null,2038,null,null,null,null,null,null,"1 Pública","9 Pagador de aportes contrato sindical",19,"PublicaSind","TP COMPENSACIÓN ORDINARIA","Y39",null,null,null,null,"TP INCAPACIDAD","INCAP","INCAPACIDADES"]
[null,null,null,null,null,null,56,null,null,null,null,null,null,2039,null,null,null,null,null,null,"1 Pública","9 Pagador de aportes contrato sindical",19,"PublicaSind","TP COMPENSACIÓN EXTRAORDINARIA","Y40",null,null,null,null,"TP VACACIONES","VACA","VACACIONES"]
[null,null,null,null,null,null,57,null,null,null,null,null,null,2040,null,null,null,null,null,null,"1 Pública","9 Pagador de aportes contrato sindical",19,"PublicaSind","TP NO COMPENSACIÓN","Y41",null,null,null,null,"TP VACACIONES TERMINACION DE CONTRATO","VACAT","VACACIONES TERMINACION DE CONTRATO"]
[null,null,null,null,null,null,58,null,null,null,null,null,null,2041,null,null,null,null,null,null,"1 Pública","9 Pagador de aportes contrato sindical",19,"PublicaSind","TP SALARIAL","Y42",null,null,null,null,"TP LICENCIA REMUNERADA","LICREM","LICENCIA REMUNERADA"]
[null,null,null,null,null,null,59,null,null,null,null,null,null,2042,null,null,null,null,null,null,"1 Pública","9 Pagador de aportes contrato sindical",19,"PublicaSind","TP A ESTUDIANTES O APRENDICES","Y43",null,null,null,null,"TP PRESTACIONES","PRESTAC","CESANTIAS"]
[null,null,null,null,null,null,60,null,null,null,null,null,null,2043,null,null,null,null,null,null,"1 Pública","9 Pagador de aportes contrato sindical",19,"PublicaSind","TP INCAPACIDAD","Y44",null,null,null,null,"TP PRESTACIONES","PRESTAC","INTERESES DE CESANTIAS"]
[null,null,null,null,null,null,61,null,null,null,null,null,null,2044,null,null,null,null,null,null,"1 Pública","9 Pagador de aportes contrato sindical",19,"PublicaSind","TP VACACIONES","Y45",null,null,null,null,"TP PRESTACIONES","PRESTAC","PRIMAS"]
[null,null,null,null,null,null,62,null,null,null,null,null,null,2045,null,null,null,null,null,null,"1 Pública","9 Pagador de aportes contrato sindical",19,"PublicaSind","TP VACACIONES TERMINACION DE CONTRATO","Y46",null,null,null,null,"TP DOCENTES SIN PAGO","DOCSINPAGO","DOCENTES SIN PAGO Dec.806 de 1998"]
[null,null,null,null,null,null,null,null,null,null,null,null,null,2046,null,null,null,null,null,null,"1 Pública","9 Pagador de aportes contrato sindical",19,"PublicaSind","TP LICENCIA REMUNERADA","Y47",null,null,null,null,"TP NO SALARIAL PUBLICA","NOSALPUB","BONIFICACIONES"]
[null,null,null,null,null,null,null,null,null,null,null,null,null,2047,null,null,null,null,null,null,"1 Pública","9 Pagador de aportes contrato sindical",19,"PublicaSind","TP NO SALARIAL","Y48",null,null,null,null,"TP NO SALARIAL PUBLICA","NOSALPUB","PRIMAS"]
[null,null,null,null,null,null,null,null,null,null,null,null,null,2048,null,null,null,null,null,null,"1 Pública","9 Pagador de aportes contrato sindical",19,"PublicaSind","TP PRESTACIONES","Y49",null,null,null,null,"TP NO SALARIAL PUBLICA","NOSALPUB","VIATICOS"]
[null,null,null,null,null,null,null,null,null,null,null,null,null,2049,null,null,null,null,null,"TP NO SALARIAL PUBLICA NO ACEPTADO UGPP","1 Pública","9 Pagador de aportes contrato sindical",19,"PublicaSind",null,"Y50",null,null,null,null,"TP NO SALARIAL PUBLICA","NOSALPUB","AUXILIOS"]
[null,null,null,null,null,null,null,null,null,null,null,null,null,2050,null,null,null,null,null,null,"2 Privada","1 Empleador.",21,"PrivadaEmp","TP SALARIAL","Y51",null,null,null,null,"TP NO SALARIAL PUBLICA","NOSALPUB","OTROS PAGOS"]
[null,null,null,null,null,null,null,null,null,null,null,null,null,null,null,null,null,null,null,null,"2 Privada","1 Empleador.",21,"PrivadaEmp","TP A ESTUDIANTES O APRENDICES","Y52",null,null,null,null,"TP NO SALARIAL PUBLICA NO ACEPTADO UGPP","NOSALPUBX","BONIFICACIONES"]
[null,null,null,null,null,null,null,null,null,null,null,null,null,null,null,null,null,null,null,null,"2 Privada","1 Empleador.",21,"PrivadaEmp","TP NO SALARIAL","Y53",null,null,null,null,"TP NO SALARIAL PUBLICA NO ACEPTADO UGPP","NOSALPUBX","PRIMAS"]
[null,null,null,null,null,null,null,null,null,null,null,null,null,null,null,null,null,null,null,null,"2 Privada","1 Empleador.",21,"PrivadaEmp","TP INCAPACIDAD","Y54",null,null,null,null,"TP NO SALARIAL PUBLICA NO ACEPTADO UGPP","NOSALPUBX","VIATICOS"]
[null,null,null,null,null,null,null,null,null,null,null,null,null,null,null,null,null,null,null,null,"2 Privada","1 Empleador.",21,"PrivadaEmp","TP VACACIONES","Y55",null,null,null,null,"TP NO SALARIAL PUBLICA NO ACEPTADO UGPP","NOSALPUBX","AUXILIOS"]
[null,null,null,null,null,null,null,null,null,null,null,null,null,null,null,null,null,null,null,null,"2 Privada","1 Empleador.",21,"PrivadaEmp","TP VACACIONES TERMINACION DE CONTRATO","Y56",null,null,null,null,"TP NO SALARIAL PUBLICA NO ACEPTADO UGPP","NOSALPUBX","OTROS PAGOS"]
[null,null,null,null,null,null,null,null,null,null,null,null,null,null,null,null,null,null,null,null,"2 Privada","1 Empleador.",21,"PrivadaEmp","TP LICENCIA REMUNERADA","Y57",null,null,null,null,"INGRESO BRUTO","INBRUTO","INGRESOS BRUTOS"]
[null,null,null,null,null,null,null,null,null,null,null,null,null,null,null,null,null,null,null,null,"2 Privada","1 Empleador.",21,"PrivadaEmp","TP COMPENSACIÓN ORDINARIA","Y58",null,null,null,null,"TP INDEPENDIENTE","INDEPEND","INGRESO INDEPENDIENTE"]
[null,null,null,null,null,null,null,null,null,null,null,null,null,null,null,null,null,null,null,null,"2 Privada","1 Empleador.",21,"PrivadaEmp","TP COMPENSACIÓN EXTRAORDINARIA","Y59",null,null,null,null,"TP CONTRATISTA","CONTRA","INGRESO INDEPENDIENTE"]
[null,null,null,null,null,null,null,null,null,null,null,null,null,null,null,null,null,null,null,null,"2 Privada","1 Empleador.",21,"PrivadaEmp","TP NO COMPENSACIÓN","Y60",null,null,null,null,"TP CONTRATISTA ARL","INDEPENDCONTRAARL","INGRESO INDEPENDIENTE"]
[null,null,null,null,null,null,null,null,null,null,null,null,null,null,null,null,null,null,null,"TP NO SALARIAL MARCADO SALARIAL POR LA UGPP","2 Privada","1 Empleador.",21,"PrivadaEmp",null,"Y61",null,null,null,null,"TP NO CONTRATISTA","NOCONTRA","INGRESO INDEPENDIENTE"]
[null,null,null,null,null,null,null,null,null,null,null,null,null,null,null,null,null,null,null,"TP NO SALARIAL PACTADO","2 Privada","1 Empleador.",21,"PrivadaEmp",null,"Y62",null,null,null,null,"TP INCAPACIDAD","INCAPIND","INCAPACIDADES"]
[null,null,null,null,null,null,null,null,null,null,null,null,null,null,null,null,null,null,null,"TP MERA LIBERALIDAD HABITUAL","2 Privada","1 Empleador.",21,"PrivadaEmp",null,"Y63",null,null,null,null,"TP NO SALARIAL PACTADO","TPNOSALARIALPACTADO","BONIFICACIONES"]
[null,null,null,null,null,null,null,null,null,null,null,null,null,null,null,null,null,null,null,"TP MERA LIBERALIDAD OCASIONAL","2 Privada","1 Empleador.",21,"PrivadaEmp",null,"Y64",null,null,null,null,"TP NO SALARIAL PACTADO","TPNOSALARIALPACTADO","PRIMAS"]
[null,null,null,null,null,null,null,null,null,null,null,null,null,null,null,null,null,null,null,"TP DOCENTES SIN PAGO","2 Privada","1 Empleador.",21,"PrivadaEmp",null,"Y65",null,null,null,null,"TP NO SALARIAL PACTADO","TPNOSALARIALPACTADO","VIATICOS"]
[null,null,null,null,null,null,null,null,null,null,null,null,null,null,null,null,null,null,null,null,"2 Privada","2 Independiente.",22,"PrivadaInd","INGRESO BRUTO","Y66",null,null,null,null,"TP NO SALARIAL PACTADO","TPNOSALARIALPACTADO","AUXILIOS"]
[null,null,null,null,null,null,null,null,null,null,null,null,null,null,null,null,null,null,null,null,"2 Privada","2 Independiente.",22,"PrivadaInd","TP INDEPENDIENTE","Y67",null,null,null,null,"TP NO SALARIAL PACTADO","TPNOSALARIALPACTADO","OTROS PAGOS"]
[null,null,null,null,null,null,null,null,null,null,null,null,null,null,null,null,null,null,null,null,"2 Privada","2 Independiente.",22,"PrivadaInd","TP CONTRATISTA","Y68",null,null,null,null,"TP MERA LIBERALIDAD HABITUAL","TPMERALIBERALIDADHABITUAL","BONIFICACIONES"]
[null,null,null,null,null,null,null,null,null,null,null,null,null,null,null,null,null,null,null,null,"2 Privada","2 Independiente.",22,"PrivadaInd","TP CONTRATISTA ARL","Y69",null,null,null,null,"TP MERA LIBERALIDAD HABITUAL","TPMERALIBERALIDADHABITUAL","PRIMAS"]
[null,null,null,null,null,null,null,null,null,null,null,null,null,null,null,null,null,null,null,null,"2 Privada","2 Independiente.",22,"PrivadaInd","TP INCAPACIDAD","Y70",null,null,null,null,"TP MERA LIBERALIDAD HABITUAL","TPMERALIBERALIDADHABITUAL","AUXILIOS"]
[null,null,null,null,null,null,null,null,null,null,null,null,null,null,null,null,null,null,null,null,"2 Privada","4 Agremiaciones o asociaciones.",24,"PrivadaAgrem","TP SALARIAL","Y71",null,null,null,null,"TP MERA LIBERALIDAD HABITUAL","TPMERALIBERALIDADHABITUAL","OTROS PAGOS"]
[null,null,null,null,null,null,null,null,null,null,null,null,null,null,null,null,null,null,null,null,"2 Privada","4 Agremiaciones o asociaciones.",24,"PrivadaAgrem","TP NO SALARIAL","Y72",null,null,null,null,"TP MERA LIBERALIDAD OCASIONAL","TPMERALIBERALIDADOCASIONAL","BONIFICACIONES"]
[null,null,null,null,null,null,null,null,null,null,null,null,null,null,null,null,null,null,null,null,"2 Privada","4 Agremiaciones o asociaciones.",24,"PrivadaAgrem","TP INCAPACIDAD","Y73",null,null,null,null,"TP MERA LIBERALIDAD OCASIONAL","TPMERALIBERALIDADOCASIONAL","PRIMAS"]
[null,null,null,null,null,null,null,null,null,null,null,null,null,null,null,null,null,null,null,null,"2 Privada","4 Agremiaciones o asociaciones.",24,"PrivadaAgrem","TP VACACIONES","Y74",null,null,null,null,"TP MERA LIBERALIDAD OCASIONAL","TPMERALIBERALIDADOCASIONAL","AUXILIOS"]
[null,null,null,null,null,null,null,null,null,null,null,null,null,null,null,null,null,null,null,null,"2 Privada","4 Agremiaciones o asociaciones.",24,"PrivadaAgrem","TP VACACIONES TERMINACION DE CONTRATO","Y75",null,null,null,null,"TP MERA LIBERALIDAD OCASIONAL","TPMERALIBERALIDADOCASIONAL","OTROS PAGOS"]
[null,null,null,null,null,null,null,null,null,null,null,null,null,null,null,null,null,null,null,null,"2 Privada","4 Agremiaciones o asociaciones.",24,"PrivadaAgrem","TP LICENCIA REMUNERADA","Y76",null,null,null,null,"TP A ESTUDIANTES O APRENDICES","TPESTUAPRE","APOYO SOSTENIMIENTO"]
[null,null,null,null,null,null,null,null,null,null,null,null,null,null,null,null,null,null,null,"TP NO SALARIAL PACTADO","2 Privada","4 Agremiaciones o asociaciones.",24,"PrivadaAgrem",null,"Y77",null,null,null,null,"TP A ESTUDIANTES O APRENDICES","TPESTUAPRE","PASANTIAS"]
[null,null,null,null,null,null,null,null,null,null,null,null,null,null,null,null,null,null,null,"TP MERA LIBERALIDAD HABITUAL","2 Privada","4 Agremiaciones o asociaciones.",24,"PrivadaAgrem",null,"Y78",null,null,null,null,"TP A ESTUDIANTES O APRENDICES","TPESTUAPRE","SERVICIOS"]
[null,null,null,null,null,null,null,null,null,null,null,null,null,null,null,null,null,null,null,"TP MERA LIBERALIDAD OCASIONAL","2 Privada","4 Agremiaciones o asociaciones.",24,"PrivadaAgrem",null,"Y79",null,null,null,null,"TP A ESTUDIANTES O APRENDICES","TPESTUAPRE","HONORARIOS"]
[null,null,null,null,null,null,null,null,null,null,null,null,null,null,null,null,null,null,null,"TP NO SALARIAL MARCADO SALARIAL POR LA UGPP","2 Privada","4 Agremiaciones o asociaciones.",24,"PrivadaAgrem",null,"Y80",null,null,null,null,"TP A ESTUDIANTES O APRENDICES","TPESTUAPRE","AYUDAS"]
[null,null,null,null,null,null,null,null,null,null,null,null,null,null,null,null,null,null,null,null,"2 Privada","5 Cooperativas y Precooperativas de Trabajo Asociado",25,"PrivadaCTA","TP COMPENSACIÓN ORDINARIA","Y81",null,null,null,null,"TP A ESTUDIANTES O APRENDICES","TPESTUAPRE","AUXILIOS"]
[null,null,null,null,null,null,null,null,null,null,null,null,null,null,null,null,null,null,null,null,"2 Privada","5 Cooperativas y Precooperativas de Trabajo Asociado",25,"PrivadaCTA","TP COMPENSACIÓN EXTRAORDINARIA","Y82"]
[null,null,null,null,null,null,null,null,null,null,null,null,null,null,null,null,null,null,null,null,"2 Privada","5 Cooperativas y Precooperativas de Trabajo Asociado",25,"PrivadaCTA","TP NO COMPENSACIÓN","Y83"]
[null,null,null,null,null,null,null,null,null,null,null,null,null,null,null,null,null,null,null,null,"2 Privada","5 Cooperativas y Precooperativas de Trabajo Asociado",25,"PrivadaCTA","TP SALARIAL","Y84"]
[null,null,null,null,null,null,null,null,null,null,null,null,null,null,null,null,null,null,null,null,"2 Privada","5 Cooperativas y Precooperativas de Trabajo Asociado",25,"PrivadaCTA","TP A ESTUDIANTES O APRENDICES","Y85"]
[null,null,null,null,null,null,null,null,null,null,null,null,null,null,null,null,null,null,null,null,"2 Privada","5 Cooperativas y Precooperativas de Trabajo Asociado",25,"PrivadaCTA","TP NO SALARIAL","Y86"]
[null,null,null,null,null,null,null,null,null,null,null,null,null,null,null,null,null,null,null,null,"2 Privada","5 Cooperativas y Precooperativas de Trabajo Asociado",25,"PrivadaCTA","TP VACACIONES","Y87"]
[null,null,null,null,null,null,null,null,null,null,null,null,null,null,null,null,null,null,null,null,"2 Privada","5 Cooperativas y Precooperativas de Trabajo Asociado",25,"PrivadaCTA","TP VACACIONES TERMINACION DE CONTRATO","Y88"]
[null,null,null,null,null,null,null,null,null,null,null,null,null,null,null,null,null,null,null,null,"2 Privada","5 Cooperativas y Precooperativas de Trabajo Asociado",25,"PrivadaCTA","TP INCAPACIDAD","Y89"]
[null,null,null,null,null,null,null,null,null,null,null,null,null,null,null,null,null,null,null,null,"2 Privada","5 Cooperativas y Precooperativas de Trabajo Asociado",25,"PrivadaCTA","TP LICENCIA REMUNERADA","Y90"]
[null,null,null,null,null,null,null,null,null,null,null,null,null,null,null,null,null,null,null,null,"2 Privada","5 Cooperativas y Precooperativas de Trabajo Asociado",25,"PrivadaCTA","TP DESCANSO ANUAL","Y91"]
[null,null,null,null,null,null,null,null,null,null,null,null,null,null,null,null,null,null,null,"TP NO COMPENSACIÓN MARCADA COMO COMP.EXTRAORDINARIA","2 Privada","5 Cooperativas y Precooperativas de Trabajo Asociado",25,"PrivadaCTA",null,"Y92"]
[null,null,null,null,null,null,null,null,null,null,null,null,null,null,null,null,null,null,null,"TP NO SALARIAL MARCADO SALARIAL POR LA UGPP","2 Privada","5 Cooperativas y Precooperativas de Trabajo Asociado",25,"PrivadaCTA",null,"Y93"]
[null,null,null,null,null,null,null,null,null,null,null,null,null,null,null,null,null,null,null,"TP NO SALARIAL PACTADO","2 Privada","5 Cooperativas y Precooperativas de Trabajo Asociado",25,"PrivadaCTA",null,"Y94"]
[null,null,null,null,null,null,null,null,null,null,null,null,null,null,null,null,null,null,null,"TP MERA LIBERALIDAD HABITUAL","2 Privada","5 Cooperativas y Precooperativas de Trabajo Asociado",25,"PrivadaCTA",null,"Y95"]
[null,null,null,null,null,null,null,null,null,null,null,null,null,null,null,null,null,null,null,"TP MERA LIBERALIDAD OCASIONAL","2 Privada","5 Cooperativas y Precooperativas de Trabajo Asociado",25,"PrivadaCTA",null,"Y96"]
[null,null,null,null,null,null,null,null,null,null,null,null,null,null,null,null,null,null,null,"TP DOCENTES SIN PAGO","2 Privada","5 Cooperativas y Precooperativas de Trabajo Asociado",25,"PrivadaCTA",null,"Y97"]
[null,null,null,null,null,null,null,null,null,null,null,null,null,null,null,null,null,null,null,null,"2 Privada","7 Organizaciones Administradoras del Programa de Hogares de Bienestar.",27,"PrivadaHorg","TP SALARIAL","Y98"]
[null,null,null,null,null,null,null,null,null,null,null,null,null,null,null,null,null,null,null,null,"2 Privada","7 Organizaciones Administradoras del Programa de Hogares de Bienestar.",27,"PrivadaHorg","TP A ESTUDIANTES O APRENDICES","Y99"]
[null,null,null,null,null,null,null,null,null,null,null,null,null,null,null,null,null,null,null,null,"2 Privada","7 Organizaciones Administradoras del Programa de Hogares de Bienestar.",27,"PrivadaHorg","TP NO SALARIAL","Y100"]
[null,null,null,null,null,null,null,null,null,null,null,null,null,null,null,null,null,null,null,null,"2 Privada","7 Organizaciones Administradoras del Programa de Hogares de Bienestar.",27,"PrivadaHorg","TP INCAPACIDAD","Y101"]
[null,null,null,null,null,null,null,null,null,null,null,null,null,null,null,null,null,null,null,null,"2 Privada","7 Organizaciones Administradoras del Programa de Hogares de Bienestar.",27,"PrivadaHorg","TP VACACIONES","Y102"]
[null,null,null,null,null,null,null,null,null,null,null,null,null,null,null,null,null,null,null,null,"2 Privada","7 Organizaciones Administradoras del Programa de Hogares de Bienestar.",27,"PrivadaHorg","TP VACACIONES TERMINACION DE CONTRATO","Y103"]
[null,null,null,null,null,null,null,null,null,null,null,null,null,null,null,null,null,null,null,null,"2 Privada","7 Organizaciones Administradoras del Programa de Hogares de Bienestar.",27,"PrivadaHorg","TP LICENCIA REMUNERADA","Y104"]
[null,null,null,null,null,null,null,null,null,null,null,null,null,null,null,null,null,null,null,"TP NO SALARIAL MARCADO SALARIAL POR LA UGPP","2 Privada","7 Organizaciones Administradoras del Programa de Hogares de Bienestar.",27,"PrivadaHorg",null,"Y105"]
[null,null,null,null,null,null,null,null,null,null,null,null,null,null,null,null,null,null,null,"TP NO SALARIAL PACTADO","2 Privada","7 Organizaciones Administradoras del Programa de Hogares de Bienestar.",27,"PrivadaHorg",null,"Y106"]
[null,null,null,null,null,null,null,null,null,null,null,null,null,null,null,null,null,null,null,"TP MERA LIBERALIDAD HABITUAL","2 Privada","7 Organizaciones Administradoras del Programa de Hogares de Bienestar.",27,"PrivadaHorg",null,"Y107"]
[null,null,null,null,null,null,null,null,null,null,null,null,null,null,null,null,null,null,null,"TP MERA LIBERALIDAD OCASIONAL","2 Privada","7 Organizaciones Administradoras del Programa de Hogares de Bienestar.",27,"PrivadaHorg",null,"Y108"]
[null,null,null,null,null,null,null,null,null,null,null,null,null,null,null,null,null,null,null,null,"2 Privada","9 Pagador de aportes contrato sindical",29,"PrivadaSind","TP COMPENSACIÓN ORDINARIA","Y109"]
[null,null,null,null,null,null,null,null,null,null,null,null,null,null,null,null,null,null,null,null,"2 Privada","9 Pagador de aportes contrato sindical",29,"PrivadaSind","TP COMPENSACIÓN EXTRAORDINARIA","Y110"]
[null,null,null,null,null,null,null,null,null,null,null,null,null,null,null,null,null,null,null,null,"2 Privada","9 Pagador de aportes contrato sindical",29,"PrivadaSind","TP NO COMPENSACIÓN","Y111"]
[null,null,null,null,null,null,null,null,null,null,null,null,null,null,null,null,null,null,null,null,"2 Privada","9 Pagador de aportes contrato sindical",29,"PrivadaSind","TP SALARIAL","Y112"]
[null,null,null,null,null,null,null,null,null,null,null,null,null,null,null,null,null,null,null,null,"2 Privada","9 Pagador de aportes contrato sindical",29,"PrivadaSind","TP A ESTUDIANTES O APRENDICES","Y113"]
[null,null,null,null,null,null,null,null,null,null,null,null,null,null,null,null,null,null,null,null,"2 Privada","9 Pagador de aportes contrato sindical",29,"PrivadaSind","TP NO SALARIAL","Y114"]
[null,null,null,null,null,null,null,null,null,null,null,null,null,null,null,null,null,null,null,null,"2 Privada","9 Pagador de aportes contrato sindical",29,"PrivadaSind","TP INCAPACIDAD","Y115"]
[null,null,null,null,null,null,null,null,null,null,null,null,null,null,null,null,null,null,null,null,"2 Privada","9 Pagador de aportes contrato sindical",29,"PrivadaSind","TP VACACIONES","Y116"]
[null,null,null,null,null,null,null,null,null,null,null,null,null,null,null,null,null,null,null,null,"2 Privada","9 Pagador de aportes contrato sindical",29,"PrivadaSind","TP VACACIONES TERMINACION DE CONTRATO","Y117"]
[null,null,null,null,null,null,null,null,null,null,null,null,null,null,null,null,null,null,null,null,"2 Privada","9 Pagador de aportes contrato sindical",29,"PrivadaSind","TP LICENCIA REMUNERADA","Y118"]
[null,null,null,null,null,null,null,null,null,null,null,null,null,null,null,null,null,null,null,"TP NO SALARIAL MARCADO SALARIAL POR LA UGPP","2 Privada","9 Pagador de aportes contrato sindical",29,"PrivadaSind",null,"Y119"]
[null,null,null,null,null,null,null,null,null,null,null,null,null,null,null,null,null,null,null,null,"3 Mixta","1 Empleador.",31,"MixtaEmp","TP SALARIAL","Y120"]
[null,null,null,null,null,null,null,null,null,null,null,null,null,null,null,null,null,null,null,null,"3 Mixta","1 Empleador.",31,"MixtaEmp","TP A ESTUDIANTES O APRENDICES","Y121"]
[null,null,null,null,null,null,null,null,null,null,null,null,null,null,null,null,null,null,null,null,"3 Mixta","1 Empleador.",31,"MixtaEmp","TP NO SALARIAL","Y122"]
[null,null,null,null,null,null,null,null,null,null,null,null,null,null,null,null,null,null,null,null,"3 Mixta","1 Empleador.",31,"MixtaEmp","TP INCAPACIDAD","Y123"]
[null,null,null,null,null,null,null,null,null,null,null,null,null,null,null,null,null,null,null,null,"3 Mixta","1 Empleador.",31,"MixtaEmp","TP VACACIONES","Y124"]
[null,null,null,null,null,null,null,null,null,null,null,null,null,null,null,null,null,null,null,null,"3 Mixta","1 Empleador.",31,"MixtaEmp","TP VACACIONES TERMINACION DE CONTRATO","Y125"]
[null,null,null,null,null,null,null,null,null,null,null,null,null,null,null,null,null,null,null,null,"3 Mixta","1 Empleador.",31,"MixtaEmp","TP LICENCIA REMUNERADA","Y126"]
[null,null,null,null,null,null,null,null,null,null,null,null,null,null,null,null,null,null,null,"TP NO SALARIAL MARCADO SALARIAL POR LA UGPP","3 Mixta","1 Empleador.",31,"MixtaEmp",null,"Y127"]
[null,null,null,null,null,null,null,null,null,null,null,null,null,null,null,null,null,null,null,"TP NO SALARIAL PACTADO","3 Mixta","1 Empleador.",31,"MixtaEmp",null,"Y128"]
[null,null,null,null,null,null,null,null,null,null,null,null,null,null,null,null,null,null,null,"TP MERA LIBERALIDAD HABITUAL","3 Mixta","1 Empleador.",31,"MixtaEmp",null,"Y129"]
[null,null,null,null,null,null,null,null,null,null,null,null,null,null,null,null,null,null,null,"TP MERA LIBERALIDAD OCASIONAL","3 Mixta","1 Empleador.",31,"MixtaEmp",null,"Y130"]
[null,null,null,null,null,null,null,null,null,null,null,null,null,null,null,null,null,null,null,null,"3 Mixta","9 Pagador de aportes contrato sindical",39,"MixtaSind","TP COMPENSACIÓN ORDINARIA","Y131"]
[null,null,null,null,null,null,null,null,null,null,null,null,null,null,null,null,null,null,null,null,"3 Mixta","9 Pagador de aportes contrato sindical",39,"MixtaSind","TP COMPENSACIÓN EXTRAORDINARIA","Y132"]
[null,null,null,null,null,null,null,null,null,null,null,null,null,null,null,null,null,null,null,null,"3 Mixta","9 Pagador de aportes contrato sindical",39,"MixtaSind","TP NO COMPENSACIÓN","Y133"]
[null,null,null,null,null,null,null,null,null,null,null,null,null,null,null,null,null,null,null,null,"3 Mixta","9 Pagador de aportes contrato sindical",39,"MixtaSind","TP SALARIAL","Y134"]
[null,null,null,null,null,null,null,null,null,null,null,null,null,null,null,null,null,null,null,null,"3 Mixta","9 Pagador de aportes contrato sindical",39,"MixtaSind","TP A ESTUDIANTES O APRENDICES","Y135"]
[null,null,null,null,null,null,null,null,null,null,null,null,null,null,null,null,null,null,null,null,"3 Mixta","9 Pagador de aportes contrato sindical",39,"MixtaSind","TP NO SALARIAL","Y136"]
[null,null,null,null,null,null,null,null,null,null,null,null,null,null,null,null,null,null,null,null,"3 Mixta","9 Pagador de aportes contrato sindical",39,"MixtaSind","TP INCAPACIDAD","Y137"]
[null,null,null,null,null,null,null,null,null,null,null,null,null,null,null,null,null,null,null,null,"3 Mixta","9 Pagador de aportes contrato sindical",39,"MixtaSind","TP VACACIONES","Y138"]
[null,null,null,null,null,null,null,null,null,null,null,null,null,null,null,null,null,null,null,null,"3 Mixta","9 Pagador de aportes contrato sindical",39,"MixtaSind","TP VACACIONES TERMINACION DE CONTRATO","Y139"]
[null,null,null,null,null,null,null,null,null,null,null,null,null,null,null,null,null,null,null,null,"3 Mixta","9 Pagador de aportes contrato sindical",39,"MixtaSind","TP LICENCIA REMUNERADA","Y140"]
[null,null,null,null,null,null,null,null,null,null,null,null,null,null,null,null,null,null,null,"TP NO SALARIAL MARCADO SALARIAL POR LA UGPP","3 Mixta","9 Pagador de aportes contrato sindical",39,"MixtaSind",null,"Y141"]
[null,null,null,null,null,null,null,null,null,null,null,null,null,null,null,null,null,null,null,"TP NO SALARIAL PACTADO","3 Mixta","9 Pagador de aportes contrato sindical",39,"MixtaSind",null,"Y142"]
[null,null,null,null,null,null,null,null,null,null,null,null,null,null,null,null,null,null,null,"TP MERA LIBERALIDAD HABITUAL","3 Mixta","9 Pagador de aportes contrato sindical",39,"MixtaSind",null,"Y143"]
[null,null,null,null,null,null,null,null,null,null,null,null,null,null,null,null,null,null,null,"TP MERA LIBERALIDAD OCASIONAL","3 Mixta","9 Pagador de aportes contrato sindical",39,"MixtaSind",null,"Y144"]
[null,null,null,null,null,null,null,null,null,null,null,null,null,null,null,null,null,null,null,null,"4 Organismos multilaterales","6 Misiones diplomáticas, consulares o de organismos multilaterales no sometidos a la legislación colombiana.",46,"OrgMisionD","TP SALARIAL","Y145"]
[null,null,null,null,null,null,null,null,null,null,null,null,null,null,null,null,null,null,null,null,"4 Organismos multilaterales","6 Misiones diplomáticas, consulares o de organismos multilaterales no sometidos a la legislación colombiana.",46,"OrgMisionD","TP A ESTUDIANTES O APRENDICES","Y146"]
[null,null,null,null,null,null,null,null,null,null,null,null,null,null,null,null,null,null,null,null,"4 Organismos multilaterales","6 Misiones diplomáticas, consulares o de organismos multilaterales no sometidos a la legislación colombiana.",46,"OrgMisionD","TP NO SALARIAL","Y147"]
[null,null,null,null,null,null,null,null,null,null,null,null,null,null,null,null,null,null,null,null,"4 Organismos multilaterales","6 Misiones diplomáticas, consulares o de organismos multilaterales no sometidos a la legislación colombiana.",46,"OrgMisionD","TP INCAPACIDAD","Y148"]
[null,null,null,null,null,null,null,null,null,null,null,null,null,null,null,null,null,null,null,null,"4 Organismos multilaterales","6 Misiones diplomáticas, consulares o de organismos multilaterales no sometidos a la legislación colombiana.",46,"OrgMisionD","TP VACACIONES","Y149"]
[null,null,null,null,null,null,null,null,null,null,null,null,null,null,null,null,null,null,null,null,"4 Organismos multilaterales","6 Misiones diplomáticas, consulares o de organismos multilaterales no sometidos a la legislación colombiana.",46,"OrgMisionD","TP VACACIONES TERMINACION DE CONTRATO","Y150"]
[null,null,null,null,null,null,null,null,null,null,null,null,null,null,null,null,null,null,null,null,"4 Organismos multilaterales","6 Misiones diplomáticas, consulares o de organismos multilaterales no sometidos a la legislación colombiana.",46,"OrgMisionD","TP LICENCIA REMUNERADA","Y151"]
[null,null,null,null,null,null,null,null,null,null,null,null,null,null,null,null,null,null,null,"TP NO SALARIAL MARCADO SALARIAL POR LA UGPP","4 Organismos multilaterales","6 Misiones diplomáticas, consulares o de organismos multilaterales no sometidos a la legislación colombiana.",46,"OrgMisionD",null,"Y152"]
[null,null,null,null,null,null,null,null,null,null,null,null,null,null,null,null,null,null,null,"TP NO SALARIAL PACTADO","4 Organismos multilaterales","6 Misiones diplomáticas, consulares o de organismos multilaterales no sometidos a la legislación colombiana.",46,"OrgMisionD",null,"Y153"]
[null,null,null,null,null,null,null,null,null,null,null,null,null,null,null,null,null,null,null,"TP MERA LIBERALIDAD HABITUAL","4 Organismos multilaterales","6 Misiones diplomáticas, consulares o de organismos multilaterales no sometidos a la legislación colombiana.",46,"OrgMisionD",null,"Y154"]
[null,null,null,null,null,null,null,null,null,null,null,null,null,null,null,null,null,null,null,"TP MERA LIBERALIDAD OCASIONAL","4 Organismos multilaterales","6 Misiones diplomáticas, consulares o de organismos multilaterales no sometidos a la legislación colombiana.",46,"OrgMisionD",null,"Y155"]
[null,null,null,null,null,null,null,null,null,null,null,null,null,null,null,null,null,null,null,null,"5 Entidades de derecho público no sometidas a la legislación colombiana","6 Misiones diplomáticas, consulares o de organismos multilaterales no sometidos a la legislación colombiana.",56,"EntMisionD","TP SALARIAL","Y156"]
[null,null,null,null,null,null,null,null,null,null,null,null,null,null,null,null,null,null,null,null,"5 Entidades de derecho público no sometidas a la legislación colombiana","6 Misiones diplomáticas, consulares o de organismos multilaterales no sometidos a la legislación colombiana.",56,"EntMisionD","TP A ESTUDIANTES O APRENDICES","Y157"]
[null,null,null,null,null,null,null,null,null,null,null,null,null,null,null,null,null,null,null,null,"5 Entidades de derecho público no sometidas a la legislación colombiana","6 Misiones diplomáticas, consulares o de organismos multilaterales no sometidos a la legislación colombiana.",56,"EntMisionD","TP NO SALARIAL","Y158"]
[null,null,null,null,null,null,null,null,null,null,null,null,null,null,null,null,null,null,null,null,"5 Entidades de derecho público no sometidas a la legislación colombiana","6 Misiones diplomáticas, consulares o de organismos multilaterales no sometidos a la legislación colombiana.",56,"EntMisionD","TP INCAPACIDAD","Y159"]
[null,null,null,null,null,null,null,null,null,null,null,null,null,null,null,null,null,null,null,null,"5 Entidades de derecho público no sometidas a la legislación colombiana","6 Misiones diplomáticas, consulares o de organismos multilaterales no sometidos a la legislación colombiana.",56,"EntMisionD","TP VACACIONES","Y160"]
[null,null,null,null,null,null,null,null,null,null,null,null,null,null,null,null,null,null,null,null,"5 Entidades de derecho público no sometidas a la legislación colombiana","6 Misiones diplomáticas, consulares o de organismos multilaterales no sometidos a la legislación colombiana.",56,"EntMisionD","TP VACACIONES TERMINACION DE CONTRATO","Y161"]
[null,null,null,null,null,null,null,null,null,null,null,null,null,null,null,null,null,null,null,null,"5 Entidades de derecho público no sometidas a la legislación colombiana","6 Misiones diplomáticas, consulares o de organismos multilaterales no sometidos a la legislación colombiana.",56,"EntMisionD","TP LICENCIA REMUNERADA","Y162"]
[null,null,null,null,null,null,null,null,null,null,null,null,null,null,null,null,null,null,null,"TP NO SALARIAL MARCADO SALARIAL POR LA UGPP","5 Entidades de derecho público no sometidas a la legislación colombiana","6 Misiones diplomáticas, consulares o de organismos multilaterales no sometidos a la legislación colombiana.",56,"EntMisionD",null,"Y163"]
[null,null,null,null,null,null,null,null,null,null,null,null,null,null,null,null,null,null,null,"TP NO SALARIAL PACTADO","5 Entidades de derecho público no sometidas a la legislación colombiana","6 Misiones diplomáticas, consulares o de organismos multilaterales no sometidos a la legislación colombiana.",56,"EntMisionD",null,"Y164"]
[null,null,null,null,null,null,null,null,null,null,null,null,null,null,null,null,null,null,null,"TP MERA LIBERALIDAD HABITUAL","5 Entidades de derecho público no sometidas a la legislación colombiana","6 Misiones diplomáticas, consulares o de organismos multilaterales no sometidos a la legislación colombiana.",56,"EntMisionD",null,"Y165"]
[null,null,null,null,null,null,null,null,null,null,null,null,null,null,null,null,null,null,null,"TP MERA LIBERALIDAD OCASIONAL","5 Entidades de derecho público no sometidas a la legislación colombiana","6 Misiones diplomáticas, consulares o de organismos multilaterales no sometidos a la legislación colombiana.",56,"EntMisionD",null,"Y166"]